Cogmind - Beta 15 *** ADVENTURER MODE // 2025.06.17 @ 01:24:01 Player: NED1124 Result: Destroyed by Y-45 Defender with Heavy Assault Rifle Performance ------------- Evolutions (1) 500 Regions Visited (2) 400 Robots Destroyed (9) 45 Value Destroyed (271) 271 Prototype IDs (0) 0 Alien Tech Used (0) 0 Bonus (0) 0 TOTAL SCORE: 1216 Bonus ------- None Cogmind --------- Core Integrity 0/400 Matter 300/300 Energy 85/100 System Corruption 0% Temperature Cool (0) Movement Walking (120) Location -9/Materials Parts ------- > --- POWER (1) -------- (None) > --- PROPULSION (3) --- Aluminum Leg Aluminum Leg Improved Aluminum Leg > --- UTILITY (3) ------ (None) > --- WEAPON (2) ------- Assault Rifle Light Assault Rifle > --- INVENTORY (5) ---- Aluminum Leg Improved Heat Sink Weight Redist. System Small Laser Peak State ------------ > --- POWER ------------ Ion Engine > --- PROPULSION ------- Compact Wheel Compact Wheel > --- UTILITY ---------- Small Storage Unit Signal Interpreter Shield Generator > --- WEAPON ----------- Assault Rifle Assault Rifle > --- INVENTORY -------- Ion Engine Aluminum Leg Aluminum Leg Improved Heat Sink Weight Redist. System Small Laser Assault Rifle [Rating: 10] Favorites ----------- Power Ion Engine Engine Ion Engine Propulsion Compact Wheel Leg Improved Aluminum Leg Wheel Compact Wheel Utility Small Storage Unit Device Shield Generator Storage Small Storage Unit Processor Signal Interpreter Weapon Assault Rifle Energy Gun Small Laser Ballistic Gun Assault Rifle Build | -11 -10 -9 ------- Run | Yrd Mat Mat Slots Evolved 2 | . . 2 Power . | . . . Propulsion 1 | . . 1 Utility 1 | . . 1 Weapon . | . . . Parts Attached 21 | 6 4 11 Power 2 | 1 . 1 Engine 2 | 1 . 1 Core . | . . . Reactor . | . . . Propulsion 6 | 2 . 4 Treads . | . . . Leg 4 | . . 4 Wheel 2 | 2 . . Hover . | . . . Flight . | . . . Utility 5 | 1 2 2 Device 3 | . 2 1 Storage 1 | 1 . . Processor 1 | . . 1 Hackware . | . . . Protection . | . . . Artifact . | . . . Weapon 8 | 2 2 4 Energy Gun 1 | 1 . . Energy Cannon . | . . . Ballistic Gun 7 | 1 2 4 Ballistic Cannon . | . . . Launcher . | . . . Special Weapon . | . . . Impact Weapon . | . . . Slashing Weapon . | . . . Piercing Weapon . | . . . Special Melee Weapon . | . . . Unidentified Prototypes . | . . . Parts Lost 9 | . . 9 Power 2 | . . 2 Propulsion 3 | . . 3 Utility 2 | . . 2 Weapon 2 | . . 2 Highest Loss Streak 6 | . . 6 To Critical Strikes . | . . . Average Backups 5 | 2 5 6 Power . | . 1 . Propulsion 1 | 1 2 1 Utility 1 | . 1 2 Weapon 1 | . 1 1 Tool/Special . | . . . Unused Backups 5 | . . 5 Power . | . . . Propulsion 2 | . . 2 Utility 1 | . . 1 Weapon 2 | . . 2 Tool/Special . | . . . Average Slot Usage (%) 67 | . 92 58 Engine 5 | . 14 2 Leg 4 | . . 5 Wheel 17 | . 28 13 Device 4 | . 7 3 Storage 9 | . 14 7 Processor 5 | . . 7 Energy Gun 2 | . 10 . Ballistic Gun 18 | . 17 18 Peak Build Rating 10 | 6 9 10 Average Rating 6 | 4 7 6 On Entrance 5 | . 6 9 Naked Turns 32 | . . 32 Heaviest Build 16 | 12 16 16 Greatest Support 33 | 32 32 33 Greatest Overweight (x) 4 | 3 . 4 Average Overweight (x) . | . . . Largest Inventory Capacity 8 | 8 8 8 Average Capacity 7 | 7 8 6 Most Carried 8 | 4 8 8 Average Carried 5 | 2 5 6 Final Capacity 8 | 8 8 5 Final Carried 8 | 4 8 4 Class Distribution -------------------- 100% | Mutant Dominant Class ---------------- Mutant | -10/Materials Mutant | -9/Materials Resources | -11 -10 -9 ----------- Run | Yrd Mat Mat Matter Collected 457 | 210 65 182 Remotely 23 | . . 23 Salvage Created 288 | . 81 207 Parts 25 | . 5 20 Haulers Intercepted . | . . . Recyclers Shooed . | . . . Parts Field Recycled . | . . . Retrieved Matter . | . . . Parts Self-Destructed . | . . . Prevented . | . . . Kills | -11 -10 -9 ------- Run | Yrd Mat Mat Combat Hostiles Destroyed 8 | . 2 6 Guns 8 | . 2 6 Classes Destroyed 4 | . 1 3 Worker 1 | . . 1 Swarmer 2 | . . 2 Grunt 3 | . 2 1 Sentry 3 | . . 3 Best Kill Streak 2 | . 1 2 Combat Bots Only 2 | . 1 2 Max Kills in Single Turn 1 | . 1 1 Gunslinging . | . . . Exploded . | . . . Melee . | . . . Uniques/NPCs Destroyed . | . . . Combat | -11 -10 -9 -------- Run | Yrd Mat Mat Hostile Shots Fired 212 | . 40 172 Missed 56 | . 7 49 Hits 156 | . 33 123 Projectile 156 | . 33 123 Critical Strikes 6 | . 1 5 Damage Taken 1474 | . 286 1188 Core 494 | . 94 400 Absorbed by Shields 50 | . 22 28 Ignored by Resistances 440 | . 93 347 Core Remaining (%) 81 | 100 62 . Volleys Fired 45 | . 15 30 Largest 2 | . 2 2 Hottest 60 | . 60 43 Shots Fired 76 | . 30 46 Gun 76 | . 30 46 Cannon . | . . . Launcher . | . . . Special . | . . . Kinetic 61 | . 15 46 Thermal 15 | . 15 . Explosive . | . . . Electromagnetic . | . . . Robot Hit Streak 15 | . 15 10 Robot Miss Streak 1 | . 1 1 Penetration Max . | . . . Secondary Targets . | . . . Shots Hit Robots 52 | . 25 27 Core Hits 20 | . 7 13 Critical Kills . | . . . Critical Parts Destroyed . | . . . Critical Strikes . | . . . Melee Attacks . | . . . Impact . | . . . Slashing . | . . . Piercing . | . . . Sneak Attacks . | . . . Combat Hostiles . | . . . Follow-up Attacks . | . . . Damage Inflicted 682 | . 225 457 Guns 663 | . 225 438 Cannons . | . . . Explosions . | . . . Melee . | . . . Ramming 19 | . . 19 Kinetic 543 | . 105 438 Thermal 120 | . 120 . Explosive . | . . . Electromagnetic . | . . . Impact . | . . . Slashing . | . . . Piercing . | . . . Highest Corruption . | . . . Average Corruption . | . . . Corruption Purged . | . . . Corruption Blocked . | . . . Overload Shots . | . . . Overflow Damage . | . . . Projectiles . | . . . Explosions . | . . . Melee . | . . . Knockbacks . | . . . Impact . | . . . Kinetic . | . . . Secondary . | . . . Self-Inflicted Damage 3 | . . 3 Shots . | . . . Rammed 1 | . . 1 Targets Rammed 17 | . . 17 Kicked 16 | . . 16 Crushed . | . . . Highest Temperature 215 | . 215 22 Average Temperature 91 | . 103 10 Received Heat Transfer 681 | . 195 486 Siege Activations . | . . . Martial Activations . | . . . Shielding Activations . | . . . Robots Disrupted . | . . . Combat Hostiles . | . . . Robots Corrupted . | . . . Combat Hostiles . | . . . Parts Fried . | . . . Impact Corruptions . | . . . Robots Melted . | . . . Combat Hostiles . | . . . Parts Melted . | . . . Heat Transferred 275 | . 275 . Parts Sabotaged . | . . . Parts Stolen . | . . . Parts Stripped . | . . . Power Chain Reactions . | . . . Alert | -11 -10 -9 ------- Run | Yrd Mat Mat Maximum Alert Level . | . . . Low Security (%) 100 | 100 100 100 Level 1 . | . . . Level 2 . | . . . Level 3 . | . . . Level 4 . | . . . Level 5 . | . . . High Security . | . . . Max Security . | . . . Peak Influence 140 | . 40 140 Initial . | . . . Average 22 | . 9 32 Influence Increases 315 | . 50 265 Destroy 0b10 Robot/C 160 | . 40 120 Destroy 0b10 Robot/NC 5 | . . 5 Destroy Leader 60 | . 10 50 Lose Combat Pursuer 90 | . . 90 Influence Decreases 195 | . 50 145 Time Decay 170 | . 50 120 Lost Part 25 | . . 25 Squads Dispatched 2 | . . 2 Investigation . | . . . Extermination . | . . . Reinforcement 2 | . . 2 Assault . | . . . Garrison . | . . . Intercept . | . . . Searches Triggered . | . . . Construction Impeded . | . . . Haulers Reinforced . | . . . Active Scanning Responses . | . . . Cargo Convoy Interrupts . | . . . Stealth | -11 -10 -9 --------- Run | Yrd Mat Mat Distress Signals 3 | . . 3 Communications Jammed . | . . . Distress Signals . | . . . Times Spotted 29 | . 6 23 Peak Tracking Total 9 | . 3 9 Tactical Retreats 3 | . . 3 Traps | -11 -10 -9 ------- Run | Yrd Mat Mat Traps Triggered . | . . . Indirectly . | . . . Trap Hack Attempts . | . . . Triggered . | . . . Disarmed . | . . . Reprogrammed . | . . . Reused . | . . . Traps Extracted . | . . . Installed . | . . . Triggered . | . . . Machines | -11 -10 -9 ---------- Run | Yrd Mat Mat Machines Disabled . | . . . Max in Single Turn . | . . . Machines Repaired . | . . . Machines Dismantled . | . . . Machines Sabotaged . | . . . Overloaded Fab Kills . | . . . Hacking | -11 -10 -9 --------- Run | Yrd Mat Mat Machines Accessed 1 | . 1 . Terminals . | . . . Fabricators . | . . . Repair Stations . | . . . Recycling Units 1 | . 1 . Scanalyzers . | . . . Garrison Access . | . . . Total Hacks 1 | . 1 . Successful 1 | . 1 . Failed . | . . . Catastrophic . | . . . Database Lockouts . | . . . Manual . | . . . Terminals . | . . . Fabricators . | . . . Repair Stations . | . . . Recycling Units 1 | . 1 . Scanalyzers . | . . . Garrison Access . | . . . Terminal Hacks . | . . . Fabricator Hacks . | . . . Repair Station Hacks . | . . . Recycling Unit Hacks 1 | . 1 . Process 1 | . 1 . Scanalyzer . | . . . Garrison Access Hacks . | . . . Unauthorized Hacks . | . . . Terminals . | . . . Fabricators . | . . . Repair Stations . | . . . Recycling Units . | . . . Scanalyzers . | . . . Garrison Access . | . . . Data Cores Recovered . | . . . Used . | . . . Hacking Detections . | . . . Full Trace Events . | . . . Feedback Events . | . . . Feedback Blocked . | . . . Robot Schematics Acquired . | . . . Robots Built . | . . . Authchips . | . . . Time . | . . . Total Robot Build Rating . | . . . Part Schematics Acquired . | . . . Parts Built . | . . . Authchips . | . . . Time . | . . . Total Part Build Rating . | . . . Parts Repaired . | . . . Time . | . . . Parts Recycled . | . . . Recycled Matter 15 | . 15 . Retrieved Matter . | . . . Retrieved Components . | . . . Parts Scanalyzed . | . . . Part Schematics Acquired . | . . . Parts Damaged . | . . . Bothacking | -11 -10 -9 ------------ Run | Yrd Mat Mat Used RIF Installer . | . . . Robots Hacked . | . . . Non-combat . | . . . Combat . | . . . Robot Hacks Applied . | . . . Relay Couplers Released . | . . . Fabnet Peak Effective % . | . . . Robots Rewired . | . . . Allies Hacked . | . . . Hacks Repelled . | . . . Allies | -11 -10 -9 -------- Run | Yrd Mat Mat Total Allies . | . . . Largest Group . | . . . Highest-Rated Group . | . . . Highest-Rated Ally . | . . . Total Orders . | . . . Ally Attacks . | . . . Total Damage . | . . . Kills . | . . . Allies Corrupted . | . . . Allies Melted . | . . . Intel | -11 -10 -9 ------- Run | Yrd Mat Mat Active Infowar (turns) . | . . . Robot Analysis Total . | . . . Derelict Logs Recovered . | . . . Drone Launches . | . . . Drone Recoveries . | . . . Exploration | -11 -10 -9 ------------- Run | Yrd Mat Mat Turns Passed 735 | 110 168 457 Spaces Moved 551 | 77 117 357 Core 98 | 27 . 71 Treads . | . . . Legs 48 | . . 48 Wheels 405 | 50 117 238 Hover . | . . . Flight . | . . . Fastest Speed 50 | 50 100 50 Average Speed 101 | 126 100 96 Slowest Speed 250 | 200 100 250 Overloaded Moves . | . . . Propulsion Burnouts . | . . . Robots Hopped . | . . . Potential Cave-ins . | . . . Cave-ins Triggered . | . . . Exploration Rate (%) 20 | 4 26 31 Regions Visited 2 Branch Regions . Pre-discovered Areas . | . . . Known Exits Taken . | . . . Unknown Exits Taken 2 | 1 1 . Scrap Searched . | . . . Spaces Dug . | . . . Terrain Destroyed . | . . . Melee . | . . . Projectile . | . . . AOE . | . . . Terrain Rammed . | . . . Walls Destroyed . | . . . Machines Disabled . | . . . Actions | -11 -10 -9 --------- Run | Yrd Mat Mat Total 646 | 86 141 419 Wait . | . . . Move 549 | 76 116 357 Hop . | . . . Pick Up 9 | 4 4 1 Fast Attach 14 | 6 2 6 Attach 3 | . . 3 Detach . | . . . Swap 4 | . 2 2 Drop 5 | . 2 3 Fire 45 | . 15 30 Melee . | . . . Ram 1 | . . 1 Kick 16 | . . 16 Crush . | . . . Escape Stasis . | . . . Rewire . | . . . Trap . | . . . Miscellaneous . | . . . Route ------- -11/Scrapyard -10/Materials -9/Materials History --------- Turn | Location | Event 17 | -11/Scrapyard | Discovered new exit (range 15) 111 | -11/Scrapyard | Entered Materials 259 | -10/Materials | Discovered new exit (range 16) 279 | -10/Materials | Entered another Materials area 279 | -9/Materials | Evolved 2 slots: Propulsion x1, Utility x1 300 | -9/Materials | Build established: Mutant 575 | -9/Materials | Released all parts (2) 593 | -9/Materials | Core integrity fell below 50% 605 | -9/Materials | Lost 6 parts (1p2n1u2w) 635 | -9/Materials | Core integrity fell below 20% 736 | -9/Materials | Destroyed by Y-45 Defender with Heavy Assault Rifle Last Messages --------------- 00658_ Kicked Y-45 Defender. 00660_ Kicked Y-45 Defender out of the way. 00662_ Kicked Y-45 Defender. 00665_ Kicked Y-45 Defender out of the way. 00666_ Acquired 17 matter. 00666_ Kicked Y-45 Defender. 00667_ Imp. Aluminum Leg destroyed. 00668_ Kicked Y-45 Defender out of the way. 00670_ Kicked Y-45 Defender. 00686_ Critical hit (Burn: +37). 00688_ Y-45 Defender destroyed. 00689_ Acquired 8 matter. 00697_ G-34 Mercenary destroyed. 00698_ Acquired 12 matter. 00701_ Acquired 4 matter. 00705_ Acquired Aluminum Leg. 00707_ Acquired 10 matter. 00711_ Acquired Aluminum Leg. 00714_ Acquired 5 matter. 00721_ Kicked M-13 Machinist out of the way. Map ----- +----------------------------------------------------+ | [=! #???????????? | | ] #???????????? | | ##+#### ######+### # #???????????? | | ## ## ######## """ #???????????? | | ## ## """ #??????# """ "#???????????? | | """ ## ## """ #??????# """ "#???????????? | | """ ## ## """ #??????# "#???????????? | | """ ## ## ######## T#???????????? | | ## ## """ # """" "#???????????? | | ## ## """ # """" "#???????????? | | ## ## """ # """" "#???????????? | | #######%= ## + #???????????? | | ??????#! ##########+##### #???????????? | | ??????# #?????# ###/##### #???????????? | | ??????# # ???# """ #? ????? ????????? | | ??????# # ""??# """ #?]]!??????? ??????? | | ??????# # R"?# """ # ]]= ??????????????????? | | ??????# # """ # # ]!= #????????????????? | | ??????# # # """ # #????????????????? | | ??????# # # """ # """ #????????????????? | | ??????+ + # ??? # """ #????????????????? | | ??????# # ! # ??? # """ #????????????????? | | ?????## ##?#+##???????## #????????????????? | | ###### ### ##????????# #????????????????? | | ########## "T" #????????????????? | | @ """ #????????????????? | | ########## #????????????????? | | ## ## #### #?????????#Y#####????????????????? | | ?# ?###+###??# #??????????##????????????????????? | | ?# ???? ?????# #????????????????????????????????? | | ?# ????""?????# #????????????????????????????????? | | ???????T"?????# ########?????????????????????????? | | ??????????????# # !! #?????????????????????????? | | ??????????????# # !! #?????????????????????????? | | ??????????????#=#=! #?????????????????????????? | | ??????????????# +%= #?????????????????????????? | | ??????????????###[ #?????????????????????????? | | ????????????????# #?????????????????????????? | | ????????????????########?????????????????????????? | | ?????????????????????????????????????????????????? | | ?????????????????????????????????????????????????? | | ?????????????????????????????????????????????????? | | ?????????????????????????????????????????????????? | | ?????????????????????????????????????????????????? | | ?????????????????????????????????????????????????? | | ?????????????????????????????????????????????????? | | ?????????????????????????????????????????????????? | | ?????????????????????????????????????????????????? | | ?????????????????????????????????????????????????? | | ?????????????????????????????????????????????????? | +----------------------------------------------------+ Best States ------------- Heat Dissipation 39 Energy Generation 10 Energy Capacity 250 Matter Stores 300 Matter Capacity 300 Sight Range 16 Terrain Scan Density 10 Resistance: KI 20 Resistance: TH 20 Resistance: EX 20 Resistance: EM 20 Resistance: I 20 Resistance: S 20 Resistance: P 20 Evasion (%) 55 Offensive Hacking 10 Item Schematics ----------------- None Robot Schematics ------------------ None Fabricated ------------ Nothing Repaired ---------- Nothing Alien Tech Used ----------------- None Achievements -------------- None Challenges ------------ None Game ------ Seed ImprinterMiniRay Manual? 0 Play Time 00:09:18 Cumulative 41.3 hours Start 2025.06.17 @ 01:15:56 End 2025.06.17 @ 01:24:01 Sessions 1 Manual Loads 0 Difficulty Adventurer Special Mode None Game No. 90 Rogue 0 Adventurer 29 Explorer 61 Win Type - Total 0 Types 0/0/0/0/0/0/0/0/0/0 Lore% 4 Gallery% 24 Achievement% 25 Wizard Run 0 Options --------- Layout 1 ASCII 0 Keyboard 1 Movement Arrows Keybinds 0 Fullscreen 1 Font 16/SmallcapsGlow Map View 55x38 Zoom Use 0% Tactical HUD 1 Map Filters NONE Filters NONE Steam 1 RUN: 206315e6-6974-4d4e-8ad1-51a5a700877b